[Event "*** Titled Tuesday Blitz"]
[Site "Chess.com"]
[Date "2021.03.30"]
[Round "3"]
[White "Beca95"]
[Black "Cptn2"]
[Result "0-1"]
[WhiteElo "2890"]
[BlackElo "2504"]
[TimeControl "180+1"]
[EndTime "10:28:50 PDT"]
[Termination "Cptn2 won on time"]

1. d4 {[%clk 0:03:00.9]} 1... Nf6 {[%clk 0:02:57.6]} 2. c4 {[%clk 0:03:01.4]}
2... b6 {[%clk 0:02:57.5]} 3. f3 {[%clk 0:02:59.7]} 3... Bb7 {[%clk 0:02:43.9]}
4. e4 {[%clk 0:02:59]} 4... g6 {[%clk 0:02:41.5]} 5. Nc3 {[%clk 0:02:58.4]} 5...
Bg7 {[%clk 0:02:41.9]} 6. e5 {[%clk 0:02:58.3]} 6... Ng8 {[%clk 0:02:40.2]} 7.
f4 {[%clk 0:02:58.5]} 7... d6 {[%clk 0:02:40.3]} 8. Be3 {[%clk 0:02:54.2]} 8...
h5 {[%clk 0:02:39.8]} 9. Nf3 {[%clk 0:02:52.8]} 9... Nh6 {[%clk 0:02:39.9]} 10.
Qd2 {[%clk 0:02:43.1]} 10... Nf5 {[%clk 0:02:18.3]} 11. Bf2 {[%clk 0:02:40.2]}
11... dxe5 {[%clk 0:02:17.1]} 12. Nxe5 {[%clk 0:02:31.1]} 12... Nd7 {[%clk
0:02:03.2]} 13. Nxd7 {[%clk 0:02:11.6]} 13... Qxd7 {[%clk 0:02:02.6]} 14. d5
{[%clk 0:02:12.3]} 14... c6 {[%clk 0:01:56.7]} 15. Rd1 {[%clk 0:02:06.5]} 15...
O-O {[%clk 0:01:49.9]} 16. Be2 {[%clk 0:02:05]} 16... Rfd8 {[%clk 0:01:38]} 17.
O-O {[%clk 0:02:04.4]} 17... e6 {[%clk 0:01:15.6]} 18. Bf3 {[%clk 0:01:36.5]}
18... cxd5 {[%clk 0:00:52.3]} 19. cxd5 {[%clk 0:01:36.5]} 19... Qe7 {[%clk
0:00:44.8]} 20. Rfe1 {[%clk 0:01:34.8]} 20... Qf6 {[%clk 0:00:39]} 21. Ne4
{[%clk 0:00:42.1]} 21... Qxb2 {[%clk 0:00:37.4]} 22. Qxb2 {[%clk 0:00:42.2]}
22... Bxb2 {[%clk 0:00:38.3]} 23. dxe6 {[%clk 0:00:42.8]} 23... fxe6 {[%clk
0:00:31.9]} 24. Nf6+ {[%clk 0:00:42.5]} 24... Bxf6 {[%clk 0:00:31.5]} 25. Bxb7
{[%clk 0:00:42.7]} 25... Rxd1 {[%clk 0:00:31.2]} 26. Rxd1 {[%clk 0:00:42.9]}
26... Rd8 {[%clk 0:00:31.9]} 27. Re1 {[%clk 0:00:37.1]} 27... Kf7 {[%clk
0:00:31.9]} 28. a4 {[%clk 0:00:36.2]} 28... Bd4 {[%clk 0:00:31.1]} 29. g3 {[%clk
0:00:35.9]} 29... Bxf2+ {[%clk 0:00:31.1]} 30. Kxf2 {[%clk 0:00:36.8]} 30...
Rd2+ {[%clk 0:00:31.5]} 31. Kg1 {[%clk 0:00:37]} 31... Kf6 {[%clk 0:00:28.4]}
32. Bc8 {[%clk 0:00:25.9]} 32... Nd4 {[%clk 0:00:28.3]} 33. Re3 {[%clk
0:00:26.1]} 33... Ra2 {[%clk 0:00:26]} 34. Bd7 {[%clk 0:00:16.3]} 34... Ke7
{[%clk 0:00:26.3]} 35. Bb5 {[%clk 0:00:16.1]} 35... Kd6 {[%clk 0:00:25.9]} 36.
Bd3 {[%clk 0:00:14.2]} 36... Ra3 {[%clk 0:00:24.5]} 37. Kf2 {[%clk 0:00:14]}
37... Nf5 {[%clk 0:00:19.9]} 38. Bxf5 {[%clk 0:00:14.2]} 38... Rxe3 {[%clk
0:00:19.4]} 39. Bxg6 {[%clk 0:00:14.6]} 39... Ra3 {[%clk 0:00:19.1]} 40. Bxh5
{[%clk 0:00:14.9]} 40... Rxa4 {[%clk 0:00:19.5]} 41. h4 {[%clk 0:00:15.4]} 41...
Ra2+ {[%clk 0:00:20.1]} 42. Ke3 {[%clk 0:00:14.9]} 42... a5 {[%clk 0:00:20.8]}
43. Be2 {[%clk 0:00:14.3]} 43... a4 {[%clk 0:00:20.7]} 44. Bd3 {[%clk
0:00:10.9]} 44... a3 {[%clk 0:00:20.6]} 45. Bc4 {[%clk 0:00:10]} 45... Rc2
{[%clk 0:00:18.6]} 0-1

[Event "*** Titled Tuesday Blitz"]
[Site "Chess.com"]
[Date "2021.03.30"]
[Round "3"]
[White "tandaleo"]
[Black "AldokhinIvan"]
[Result "1-0"]
[WhiteElo "2361"]
[BlackElo "2528"]
[TimeControl "180+1"]
[EndTime "10:28:50 PDT"]
[Termination "tandaleo won by resignation"]

1. Nf3 {[%clk 0:03:00.9]} 1... Nf6 {[%clk 0:02:59.2]} 2. g3 {[%clk 0:03:00.2]}
2... g6 {[%clk 0:02:56.5]} 3. Bg2 {[%clk 0:02:58.9]} 3... Bg7 {[%clk 0:02:57]}
4. O-O {[%clk 0:02:57.1]} 4... O-O {[%clk 0:02:56.6]} 5. d4 {[%clk 0:02:56.8]}
5... d5 {[%clk 0:02:51.6]} 6. c4 {[%clk 0:02:50.8]} 6... dxc4 {[%clk 0:02:43.8]}
7. Ne5 {[%clk 0:02:50.2]} 7... Nbd7 {[%clk 0:02:38.9]} 8. Nxc4 {[%clk
0:02:49.3]} 8... Nb6 {[%clk 0:02:39]} 9. Ne5 {[%clk 0:02:36.9]} 9... Nfd7 {[%clk
0:02:37.9]} 10. Nxd7 {[%clk 0:02:35.9]} 10... Bxd7 {[%clk 0:02:36.7]} 11. Nc3
{[%clk 0:02:36]} 11... Bc6 {[%clk 0:02:27]} 12. d5 {[%clk 0:02:35.1]} 12... Bd7
{[%clk 0:02:15.9]} 13. Qb3 {[%clk 0:01:58.9]} 13... Qc8 {[%clk 0:01:59.6]} 14.
Rd1 {[%clk 0:01:53.6]} 14... Bh3 {[%clk 0:01:57.7]} 15. Bh1 {[%clk 0:01:50.8]}
15... Bg4 {[%clk 0:01:53]} 16. a4 {[%clk 0:01:43.4]} 16... Nd7 {[%clk 0:01:34]}
17. f3 {[%clk 0:01:31.1]} 17... Bh3 {[%clk 0:01:32]} 18. e4 {[%clk 0:01:25.7]}
18... c5 {[%clk 0:01:24.9]} 19. Be3 {[%clk 0:01:21.3]} 19... c4 {[%clk
0:01:24.2]} 20. Qc2 {[%clk 0:01:05.1]} 20... Nc5 {[%clk 0:01:24.1]} 21. Bg2
{[%clk 0:00:46.1]} 21... Bxg2 {[%clk 0:01:21.5]} 22. Kxg2 {[%clk 0:00:46.1]}
22... Nb3 {[%clk 0:01:10]} 23. Rab1 {[%clk 0:00:45.2]} 23... f5 {[%clk
0:01:10.5]} 24. h3 {[%clk 0:00:31.6]} 24... Qd7 {[%clk 0:00:45.9]} 25. Bf2
{[%clk 0:00:13.8]} 25... Rac8 {[%clk 0:00:30.2]} 26. Qe2 {[%clk 0:00:13.4]}
26... fxe4 {[%clk 0:00:25.2]} 27. fxe4 {[%clk 0:00:13.9]} 27... Nc5 {[%clk
0:00:20]} 28. Bxc5 {[%clk 0:00:06.3]} 28... Rxc5 {[%clk 0:00:19.2]} 29. Rf1
{[%clk 0:00:07]} 29... Rcc8 {[%clk 0:00:17.3]} 30. e5 {[%clk 0:00:07.2]} 30...
e6 {[%clk 0:00:06.4]} 31. d6 {[%clk 0:00:06.1]} 31... Rxf1 {[%clk 0:00:06.4]}
32. Rxf1 {[%clk 0:00:06]} 32... Rc5 {[%clk 0:00:07.3]} 33. Qf2 {[%clk
0:00:02.5]} 33... Rxe5 {[%clk 0:00:06.1]} 34. Qxa7 {[%clk 0:00:02.8]} 34... h5
{[%clk 0:00:05.6]} 35. Qa8+ {[%clk 0:00:02.5]} 35... Kh7 {[%clk 0:00:05.7]} 36.
a5 {[%clk 0:00:02.7]} 36... Qc7 {[%clk 0:00:06.2]} 37. dxc7 {[%clk 0:00:03]}
37... Rc5 {[%clk 0:00:03.8]} 38. c8=Q {[%clk 0:00:03]} 38... Rxc8 {[%clk
0:00:02.1]} 39. Qxc8 {[%clk 0:00:03.9]} 39... Kh6 {[%clk 0:00:02.8]} 40. Qxb7
{[%clk 0:00:04.8]} 40... h4 {[%clk 0:00:03.4]} 41. a6 {[%clk 0:00:05.7]} 41...
hxg3 {[%clk 0:00:03.4]} 42. Kxg3 {[%clk 0:00:06.6]} 42... Be5+ {[%clk
0:00:03.7]} 43. Kg2 {[%clk 0:00:07.3]} 43... Kg5 {[%clk 0:00:04.2]} 44. a7
{[%clk 0:00:07.9]} 44... Kh4 {[%clk 0:00:04.7]} 45. a8=Q {[%clk 0:00:08.3]} 1-0

[Event "*** Titled Tuesday Blitz"]
[Site "Chess.com"]
[Date "2021.03.30"]
[Round "3"]
[White "Jungle_Jaguar"]
[Black "GMKrikor"]
[Result "0-1"]
[WhiteElo "2605"]
[BlackElo "2828"]
[TimeControl "180+1"]
[EndTime "10:28:51 PDT"]
[Termination "GMKrikor won by resignation"]

1. e4 {[%clk 0:03:00.9]} 1... c5 {[%clk 0:02:56.5]} 2. Nf3 {[%clk 0:03:00.8]}
2... d6 {[%clk 0:02:56]} 3. d4 {[%clk 0:03:01.1]} 3... cxd4 {[%clk 0:02:56.9]}
4. Nxd4 {[%clk 0:03:02]} 4... Nf6 {[%clk 0:02:56.8]} 5. Nc3 {[%clk 0:03:02.4]}
5... a6 {[%clk 0:02:57.4]} 6. Be3 {[%clk 0:03:02.8]} 6... e5 {[%clk 0:02:56.7]}
7. Nb3 {[%clk 0:03:03.3]} 7... Be6 {[%clk 0:02:56.8]} 8. f3 {[%clk 0:03:02.9]}
8... h5 {[%clk 0:02:52.3]} 9. Qd2 {[%clk 0:03:02.9]} 9... Nbd7 {[%clk
0:02:49.4]} 10. O-O-O {[%clk 0:03:01.2]} 10... Rc8 {[%clk 0:02:48.3]} 11. Nd5
{[%clk 0:03:00.6]} 11... Bxd5 {[%clk 0:02:40.2]} 12. exd5 {[%clk 0:03:01.5]}
12... Be7 {[%clk 0:02:21.6]} 13. Kb1 {[%clk 0:03:01.1]} 13... Nb6 {[%clk
0:02:12.8]} 14. Be2 {[%clk 0:02:49.8]} 14... Qc7 {[%clk 0:02:03.8]} 15. c4
{[%clk 0:02:24]} 15... O-O {[%clk 0:01:51.4]} 16. Rc1 {[%clk 0:02:23.7]} 16...
Nbd7 {[%clk 0:01:42.9]} 17. h3 {[%clk 0:02:21.1]} 17... h4 {[%clk 0:01:42.1]}
18. Bg5 {[%clk 0:02:20.9]} 18... a5 {[%clk 0:01:36]} 19. Bxh4 {[%clk 0:02:12.6]}
19... a4 {[%clk 0:01:35.4]} 20. Na1 {[%clk 0:02:11.8]} 20... Ne4 {[%clk
0:01:20.9]} 21. fxe4 {[%clk 0:02:05.8]} 21... Bxh4 {[%clk 0:01:20.3]} 22. Nc2
{[%clk 0:01:56]} 22... Nc5 {[%clk 0:01:14.4]} 23. Qe3 {[%clk 0:01:48.6]} 23...
Qe7 {[%clk 0:01:12.1]} 24. Rcf1 {[%clk 0:01:35.1]} 24... Bg5 {[%clk 0:01:03.1]}
25. Qf3 {[%clk 0:01:35.4]} 25... f5 {[%clk 0:00:57.1]} 26. exf5 {[%clk 0:01:29]}
26... e4 {[%clk 0:00:58]} 27. Qg4 {[%clk 0:01:26.1]} 27... Bf6 {[%clk
0:00:57.8]} 28. Qg3 {[%clk 0:01:10.9]} 28... e3 {[%clk 0:00:45.4]} 29. Qxe3
{[%clk 0:01:04.6]} 29... Qxe3 {[%clk 0:00:39]} 30. Nxe3 {[%clk 0:01:04.5]} 30...
Rfe8 {[%clk 0:00:36.4]} 31. Rf3 {[%clk 0:01:01.6]} 31... Bg5 {[%clk 0:00:34.8]}
32. Rg3 {[%clk 0:00:52.9]} 32... Bf4 {[%clk 0:00:23.9]} 33. Rg4 {[%clk
0:00:44.6]} 33... Rxe3 {[%clk 0:00:23.8]} 34. Rxf4 {[%clk 0:00:38.9]} 34... Rxe2
{[%clk 0:00:23.9]} 35. Rg4 {[%clk 0:00:33.8]} 35... Rf8 {[%clk 0:00:18.6]} 36.
Rf1 {[%clk 0:00:32.4]} 36... Nd3 {[%clk 0:00:14.1]} 37. f6 {[%clk 0:00:22.9]}
37... Rf7 {[%clk 0:00:12.2]} 38. Rf3 {[%clk 0:00:21.6]} 38... Ne5 {[%clk
0:00:09.6]} 39. fxg7 {[%clk 0:00:16.2]} 39... Nxf3 {[%clk 0:00:09.2]} 40. gxf3
{[%clk 0:00:15.6]} 40... Rxf3 {[%clk 0:00:09.4]} 41. a3 {[%clk 0:00:14.9]} 41...
Rff2 {[%clk 0:00:08.5]} 42. c5 {[%clk 0:00:14.7]} 42... Rxb2+ {[%clk 0:00:08.2]}
43. Ka1 {[%clk 0:00:14.9]} 43... Rbc2 {[%clk 0:00:07.6]} 44. Rg1 {[%clk
0:00:12.5]} 44... Rxc5 {[%clk 0:00:07.2]} 0-1

[Event "*** Titled Tuesday Blitz"]
[Site "Chess.com"]
[Date "2021.03.30"]
[Round "3"]
[White "Ave_Mariia"]
[Black "kamilianin235"]
[Result "0-1"]
[WhiteElo "2492"]
[BlackElo "2273"]
[TimeControl "180+1"]
[EndTime "10:28:51 PDT"]
[Termination "kamilianin235 won by resignation"]

1. d4 {[%clk 0:03:00.9]} 1... d5 {[%clk 0:02:55.2]} 2. c4 {[%clk 0:03:01.1]}
2... dxc4 {[%clk 0:02:54.7]} 3. e4 {[%clk 0:03:00.2]} 3... c5 {[%clk 0:02:53.3]}
4. d5 {[%clk 0:02:53.9]} 4... e6 {[%clk 0:02:52.9]} 5. Bxc4 {[%clk 0:02:53.4]}
5... Nf6 {[%clk 0:02:53]} 6. Nc3 {[%clk 0:02:52.8]} 6... exd5 {[%clk 0:02:52.2]}
7. exd5 {[%clk 0:02:52.6]} 7... a6 {[%clk 0:02:52]} 8. a4 {[%clk 0:02:49.4]}
8... Bd6 {[%clk 0:02:42.7]} 9. Nge2 {[%clk 0:02:49.1]} 9... O-O {[%clk
0:02:39.9]} 10. O-O {[%clk 0:02:46]} 10... Nbd7 {[%clk 0:02:33.4]} 11. Bf4
{[%clk 0:02:41.4]} 11... Qc7 {[%clk 0:02:26]} 12. Qd2 {[%clk 0:02:36.8]} 12...
Ne5 {[%clk 0:02:19.8]} 13. Ba2 {[%clk 0:02:36.3]} 13... b6 {[%clk 0:02:17.5]}
14. Rfe1 {[%clk 0:02:33.8]} 14... Bb7 {[%clk 0:02:15.4]} 15. Rad1 {[%clk
0:02:32.2]} 15... Rad8 {[%clk 0:02:14.1]} 16. Qc1 {[%clk 0:02:23.4]} 16... Qd7
{[%clk 0:02:04.6]} 17. Ng3 {[%clk 0:02:15.7]} 17... Rfe8 {[%clk 0:01:58.4]} 18.
Bg5 {[%clk 0:02:08.8]} 18... Neg4 {[%clk 0:01:41]} 19. h3 {[%clk 0:01:53.7]}
19... h6 {[%clk 0:01:36]} 20. Bf4 {[%clk 0:01:42.9]} 20... Ne5 {[%clk
0:01:31.2]} 21. Nge4 {[%clk 0:01:40.8]} 21... Nxe4 {[%clk 0:01:20.6]} 22. Nxe4
{[%clk 0:01:41.7]} 22... Bb8 {[%clk 0:01:20.4]} 23. Bxh6 {[%clk 0:01:27.6]}
23... Qf5 {[%clk 0:01:15.6]} 24. Bg5 {[%clk 0:01:19.4]} 24... f6 {[%clk
0:01:09.6]} 25. Bh4 {[%clk 0:00:52.3]} 25... Nd3 {[%clk 0:00:45.1]} 26. Rxd3
{[%clk 0:00:47.7]} 26... Rxe4 {[%clk 0:00:43.4]} 27. Rf3 {[%clk 0:00:30.1]}
27... Qe5 {[%clk 0:00:36.1]} 28. Rxe4 {[%clk 0:00:27.8]} 28... Qh2+ {[%clk
0:00:34.1]} 29. Kf1 {[%clk 0:00:27.8]} 29... Qh1+ {[%clk 0:00:33.1]} 30. Ke2
{[%clk 0:00:27.1]} 30... Qxc1 {[%clk 0:00:32.8]} 31. Rd3 {[%clk 0:00:16.1]}
31... Qxb2+ {[%clk 0:00:16.6]} 32. Rd2 {[%clk 0:00:16.2]} 32... Qc3 {[%clk
0:00:16.9]} 33. Bg3 {[%clk 0:00:14.6]} 33... Bxg3 {[%clk 0:00:15.4]} 34. fxg3
{[%clk 0:00:14.1]} 34... Qxg3 {[%clk 0:00:14.9]} 35. Kf1 {[%clk 0:00:11]} 35...
Qg5 {[%clk 0:00:14.4]} 36. Rd1 {[%clk 0:00:10.4]} 36... Bxd5 {[%clk 0:00:13.5]}
37. Bxd5+ {[%clk 0:00:09.3]} 37... Rxd5 {[%clk 0:00:13.1]} 38. Ree1 {[%clk
0:00:09.1]} 38... Rxd1 {[%clk 0:00:12.2]} 39. Rxd1 {[%clk 0:00:10]} 39... Qf5+
{[%clk 0:00:12.8]} 40. Ke1 {[%clk 0:00:10.4]} 40... b5 {[%clk 0:00:13.2]} 41.
Rd8+ {[%clk 0:00:10.1]} 41... Kh7 {[%clk 0:00:13]} 42. axb5 {[%clk 0:00:10.7]}
42... axb5 {[%clk 0:00:13.6]} 43. Ra8 {[%clk 0:00:09.8]} 43... Qe5+ {[%clk
0:00:13.4]} 44. Kf1 {[%clk 0:00:09.4]} 44... b4 {[%clk 0:00:13.9]} 45. Kg1
{[%clk 0:00:09.7]} 45... b3 {[%clk 0:00:14]} 46. Ra7 {[%clk 0:00:08]} 46... b2
{[%clk 0:00:13.8]} 47. Rb7 {[%clk 0:00:08.5]} 47... Qe3+ {[%clk 0:00:12.1]} 0-1

[Event "*** Titled Tuesday Blitz"]
[Site "Chess.com"]
[Date "2021.03.30"]
[Round "3"]
[White "fabianvivasz"]
[Black "arminmusovic"]
[Result "1-0"]
[WhiteElo "2404"]
[BlackElo "2556"]
[TimeControl "180+1"]
[EndTime "10:28:53 PDT"]
[Termination "fabianvivasz won by resignation"]

1. e4 {[%clk 0:03:00.9]} 1... c6 {[%clk 0:03:00.3]} 2. d4 {[%clk 0:02:56.4]}
2... d5 {[%clk 0:03:00.7]} 3. e5 {[%clk 0:02:56.8]} 3... c5 {[%clk 0:03:00.2]}
4. dxc5 {[%clk 0:02:56.5]} 4... Nc6 {[%clk 0:03:00.4]} 5. Nf3 {[%clk 0:02:48.2]}
5... Bg4 {[%clk 0:02:58.8]} 6. Nc3 {[%clk 0:02:32.2]} 6... e6 {[%clk 0:02:57.3]}
7. Bb5 {[%clk 0:02:25.9]} 7... Bxc5 {[%clk 0:02:55.8]} 8. h3 {[%clk 0:02:20.3]}
8... Bh5 {[%clk 0:02:54.7]} 9. Bf4 {[%clk 0:02:09.3]} 9... Ne7 {[%clk
0:02:52.7]} 10. O-O {[%clk 0:02:04.1]} 10... a6 {[%clk 0:02:49.8]} 11. Bxc6+
{[%clk 0:02:02.2]} 11... bxc6 {[%clk 0:02:45.1]} 12. a3 {[%clk 0:02:02.4]} 12...
h6 {[%clk 0:02:41.5]} 13. Qd3 {[%clk 0:01:46.4]} 13... O-O {[%clk 0:02:37.6]}
14. b4 {[%clk 0:01:44.7]} 14... Bg6 {[%clk 0:02:33.9]} 15. Qd2 {[%clk
0:01:42.4]} 15... Ba7 {[%clk 0:02:32.8]} 16. Be3 {[%clk 0:01:37.9]} 16... Nf5
{[%clk 0:02:28.1]} 17. Bxa7 {[%clk 0:01:35.4]} 17... Rxa7 {[%clk 0:02:29]} 18.
Nd4 {[%clk 0:01:32.2]} 18... Qb6 {[%clk 0:02:18.8]} 19. Nxf5 {[%clk 0:01:29.7]}
19... Bxf5 {[%clk 0:02:19.7]} 20. Na4 {[%clk 0:01:25]} 20... Qc7 {[%clk
0:02:09.3]} 21. Rac1 {[%clk 0:01:12.6]} 21... Qxe5 {[%clk 0:02:02]} 22. c4
{[%clk 0:01:11]} 22... Rb8 {[%clk 0:01:44.5]} 23. Rfe1 {[%clk 0:01:06]} 23...
Qf6 {[%clk 0:01:43.6]} 24. Qf4 {[%clk 0:00:56.3]} 24... Rba8 {[%clk 0:01:38.8]}
25. cxd5 {[%clk 0:00:51.3]} 25... cxd5 {[%clk 0:01:36.7]} 26. Rc6 {[%clk
0:00:46.2]} 26... Qg6 {[%clk 0:01:31.9]} 27. Kh2 {[%clk 0:00:43.5]} 27... Rf8
{[%clk 0:01:20.6]} 28. Nc5 {[%clk 0:00:23.3]} 28... Be4 {[%clk 0:01:18.5]} 29.
Nxe4 {[%clk 0:00:21.7]} 29... dxe4 {[%clk 0:01:19.4]} 30. Rxe4 {[%clk
0:00:21.5]} 30... Rd7 {[%clk 0:01:17.2]} 31. Rd4 {[%clk 0:00:19.4]} 31... Rxd4
{[%clk 0:01:09.9]} 32. Qxd4 {[%clk 0:00:20.3]} 32... Qg5 {[%clk 0:01:09.4]} 33.
Rxa6 {[%clk 0:00:19.3]} 33... Rd8 {[%clk 0:01:08.2]} 34. Qe4 {[%clk 0:00:17.9]}
34... g6 {[%clk 0:01:06.3]} 35. Ra8 {[%clk 0:00:15.1]} 35... Kh7 {[%clk
0:01:04.9]} 36. Rxd8 {[%clk 0:00:14.6]} 36... Qxd8 {[%clk 0:01:05.8]} 37. Qf4
{[%clk 0:00:13.4]} 37... Kg8 {[%clk 0:01:03.7]} 38. b5 {[%clk 0:00:13.1]} 38...
g5 {[%clk 0:01:04]} 39. Qe5 {[%clk 0:00:12.7]} 39... Qa5 {[%clk 0:01:03.8]} 40.
g3 {[%clk 0:00:03.6]} 40... Qxa3 {[%clk 0:01:02.6]} 41. b6 {[%clk 0:00:03.8]}
41... Qa2 {[%clk 0:01:02.6]} 42. Qe3 {[%clk 0:00:02.2]} 42... Qb2 {[%clk
0:01:01.6]} 43. Qc5 {[%clk 0:00:02]} 43... Kh7 {[%clk 0:01:00.5]} 44. Kg2 {[%clk
0:00:02.6]} 44... h5 {[%clk 0:01:00.7]} 45. Qc7 {[%clk 0:00:03]} 45... Qb3
{[%clk 0:00:53.2]} 46. b7 {[%clk 0:00:03]} 46... Qd5+ {[%clk 0:00:52.8]} 47. Kg1
{[%clk 0:00:03.5]} 47... Qd1+ {[%clk 0:00:52.7]} 48. Kh2 {[%clk 0:00:03.6]}
48... Qf3 {[%clk 0:00:53.4]} 49. Qb6 {[%clk 0:00:01.9]} 49... h4 {[%clk
0:00:52.4]} 50. b8=Q {[%clk 0:00:02.2]} 50... f5 {[%clk 0:00:50.6]} 51. Q8c7+
{[%clk 0:00:02.2]} 51... Kh6 {[%clk 0:00:49.5]} 52. Qcd6 {[%clk 0:00:02.4]}
52... Kh5 {[%clk 0:00:46.1]} 53. Qxe6 {[%clk 0:00:02.3]} 53... hxg3+ {[%clk
0:00:45.6]} 54. Kg1 {[%clk 0:00:02.6]} 54... Qd1+ {[%clk 0:00:44.1]} 55. Kg2
{[%clk 0:00:02.8]} 1-0

[Event "*** Titled Tuesday Blitz"]
[Site "Chess.com"]
[Date "2021.03.30"]
[Round "3"]
[White "muchojogo"]
[Black "louis198"]
[Result "1-0"]
[WhiteElo "2412"]
[BlackElo "2569"]
[TimeControl "180+1"]
[EndTime "10:28:54 PDT"]
[Termination "muchojogo won by resignation"]

1. d4 {[%clk 0:03:00.9]} 1... e6 {[%clk 0:02:59.4]} 2. Bf4 {[%clk 0:03:00.5]}
2... c5 {[%clk 0:02:58.5]} 3. e3 {[%clk 0:03:00.5]} 3... Nf6 {[%clk 0:02:58]} 4.
Nd2 {[%clk 0:02:44.3]} 4... Nd5 {[%clk 0:02:56.9]} 5. Bg3 {[%clk 0:02:44]} 5...
cxd4 {[%clk 0:02:55.8]} 6. exd4 {[%clk 0:02:43]} 6... d6 {[%clk 0:02:55.7]} 7.
Ngf3 {[%clk 0:02:39.3]} 7... Be7 {[%clk 0:02:55.6]} 8. Bd3 {[%clk 0:02:39.2]}
8... f5 {[%clk 0:02:55.6]} 9. h3 {[%clk 0:02:19.6]} 9... O-O {[%clk 0:02:51.5]}
10. c3 {[%clk 0:02:18.6]} 10... a6 {[%clk 0:02:45.9]} 11. O-O {[%clk 0:02:18.5]}
11... b5 {[%clk 0:02:46]} 12. a4 {[%clk 0:02:16.4]} 12... bxa4 {[%clk
0:02:43.2]} 13. Rxa4 {[%clk 0:02:11.2]} 13... Bb7 {[%clk 0:02:43.2]} 14. Nc4
{[%clk 0:02:07]} 14... Nb6 {[%clk 0:02:39.3]} 15. Nxb6 {[%clk 0:02:03.6]} 15...
Qxb6 {[%clk 0:02:40.2]} 16. Qe2 {[%clk 0:02:04.5]} 16... Bc8 {[%clk 0:00:58]}
17. Rfa1 {[%clk 0:01:55.5]} 17... Ra7 {[%clk 0:00:49.2]} 18. Rb4 {[%clk
0:01:47]} 18... Qc7 {[%clk 0:00:48.5]} 19. Bh4 {[%clk 0:01:31.1]} 19... Bxh4
{[%clk 0:00:47.8]} 20. Nxh4 {[%clk 0:01:32]} 20... Nc6 {[%clk 0:00:46.2]} 21.
Rba4 {[%clk 0:01:32.1]} 21... a5 {[%clk 0:00:45.5]} 22. Bb5 {[%clk 0:01:28.1]}
22... Ne7 {[%clk 0:00:37.9]} 23. Nf3 {[%clk 0:01:24.5]} 23... Nd5 {[%clk
0:00:36.4]} 24. Ng5 {[%clk 0:01:16.9]} 24... Qe7 {[%clk 0:00:28.7]} 25. h4
{[%clk 0:01:12]} 25... h6 {[%clk 0:00:28.2]} 26. Nf3 {[%clk 0:01:12.3]} 26...
Qc7 {[%clk 0:00:25.8]} 27. g3 {[%clk 0:01:08.8]} 27... f4 {[%clk 0:00:24]} 28.
g4 {[%clk 0:01:06.1]} 28... Nf6 {[%clk 0:00:23.6]} 29. g5 {[%clk 0:01:04]} 29...
hxg5 {[%clk 0:00:23.9]} 30. hxg5 {[%clk 0:01:04.9]} 30... Nd5 {[%clk 0:00:24]}
31. Qe4 {[%clk 0:01:02.3]} 31... Rf5 {[%clk 0:00:19.2]} 32. Kg2 {[%clk
0:00:58.2]} 32... Nxc3 {[%clk 0:00:19.2]} 33. bxc3 {[%clk 0:00:56.2]} 33... Rxb5
{[%clk 0:00:19.4]} 34. Rh1 {[%clk 0:00:52.8]} 34... Rf5 {[%clk 0:00:19.5]} 35.
d5 {[%clk 0:00:51.9]} 35... Qf7 {[%clk 0:00:09.6]} 36. dxe6 {[%clk 0:00:48.6]}
36... Qxe6 {[%clk 0:00:09.6]} 37. Qd4 {[%clk 0:00:35.3]} 37... Rc7 {[%clk
0:00:05.1]} 38. Re1 {[%clk 0:00:34.5]} 38... Qf7 {[%clk 0:00:04.3]} 39. Qxd6
{[%clk 0:00:32.5]} 39... Rd7 {[%clk 0:00:03.5]} 40. Qb8 {[%clk 0:00:29.3]} 40...
Qf8 {[%clk 0:00:04]} 41. Qb3+ {[%clk 0:00:27.1]} 41... Rdf7 {[%clk 0:00:03.3]}
42. Rae4 {[%clk 0:00:25.7]} 42... Bd7 {[%clk 0:00:02.6]} 43. g6 {[%clk
0:00:25.5]} 43... Rf6 {[%clk 0:00:02.5]} 44. gxf7+ {[%clk 0:00:25.4]} 44... Rxf7
{[%clk 0:00:03.4]} 45. Re7 {[%clk 0:00:24.9]} 45... a4 {[%clk 0:00:04.3]} 46.
Qxf7+ {[%clk 0:00:23.7]} 46... Qxf7 {[%clk 0:00:04.3]} 47. Rxf7 {[%clk
0:00:24.6]} 47... Kxf7 {[%clk 0:00:04.4]} 48. Ne5+ {[%clk 0:00:25.2]} 1-0

[Event "*** Titled Tuesday Blitz"]
[Site "Chess.com"]
[Date "2021.03.30"]
[Round "3"]
[White "DenisQ"]
[Black "ApacheSVD"]
[Result "1-0"]
[WhiteElo "2641"]
[BlackElo "2415"]
[TimeControl "180+1"]
[EndTime "10:28:55 PDT"]
[Termination "DenisQ won on time"]

1. Nf3 {[%clk 0:03:00.9]} 1... c5 {[%clk 0:02:59.8]} 2. g3 {[%clk 0:03:00.1]}
2... Nc6 {[%clk 0:02:57.2]} 3. Bg2 {[%clk 0:02:59.8]} 3... e5 {[%clk 0:02:57.8]}
4. c4 {[%clk 0:02:59.1]} 4... d6 {[%clk 0:02:58.1]} 5. Nc3 {[%clk 0:02:58.5]}
5... g6 {[%clk 0:02:58.6]} 6. O-O {[%clk 0:02:58]} 6... Bg7 {[%clk 0:02:59.3]}
7. a3 {[%clk 0:02:57.3]} 7... Nge7 {[%clk 0:02:57.5]} 8. Rb1 {[%clk 0:02:56.7]}
8... O-O {[%clk 0:02:57.2]} 9. b4 {[%clk 0:02:55.9]} 9... b6 {[%clk 0:02:57.8]}
10. b5 {[%clk 0:02:52.7]} 10... Na5 {[%clk 0:02:54.2]} 11. Nxe5 {[%clk
0:02:51.9]} 11... dxe5 {[%clk 0:02:50.4]} 12. Bxa8 {[%clk 0:02:50.7]} 12... Bf5
{[%clk 0:02:51.1]} 13. e4 {[%clk 0:02:40.6]} 13... Bh3 {[%clk 0:02:48.8]} 14.
Bd5 {[%clk 0:02:39.6]} 14... Bxf1 {[%clk 0:02:41.6]} 15. Qxf1 {[%clk 0:02:38.8]}
15... Kh8 {[%clk 0:02:39.7]} 16. d3 {[%clk 0:02:37.1]} 16... f5 {[%clk
0:02:38.6]} 17. Bg5 {[%clk 0:02:35.9]} 17... Bf6 {[%clk 0:02:36]} 18. Bxf6+
{[%clk 0:02:35.2]} 18... Rxf6 {[%clk 0:02:36.9]} 19. exf5 {[%clk 0:02:30.7]}
19... gxf5 {[%clk 0:02:33.2]} 20. Re1 {[%clk 0:02:28.2]} 20... Ng6 {[%clk
0:02:32.8]} 21. Qe2 {[%clk 0:02:23.2]} 21... Nb3 {[%clk 0:02:32.4]} 22. Qh5
{[%clk 0:02:16.9]} 22... Nd4 {[%clk 0:02:22.8]} 23. Kg2 {[%clk 0:02:16.1]} 23...
Qf8 {[%clk 0:02:14.1]} 24. Qg5 {[%clk 0:02:13.6]} 24... Qg7 {[%clk 0:02:08.1]}
25. Kf1 {[%clk 0:01:59.9]} 25... h6 {[%clk 0:01:46]} 26. Qh5 {[%clk 0:01:58.4]}
26... Rf8 {[%clk 0:01:24.3]} 27. a4 {[%clk 0:01:41.5]} 27... Nc2 {[%clk
0:00:23]} 28. Rc1 {[%clk 0:01:36.1]} 28... Nb4 {[%clk 0:00:23.4]} 29. Qe2 {[%clk
0:01:28]} 29... Qf6 {[%clk 0:00:17.2]} 30. Bg2 {[%clk 0:01:23.5]} 30... Ne7
{[%clk 0:00:09]} 31. Re1 {[%clk 0:01:10.8]} 31... e4 {[%clk 0:00:09.1]} 32. Nxe4
{[%clk 0:00:47.5]} 32... fxe4 {[%clk 0:00:09]} 33. Bxe4 {[%clk 0:00:47.5]} 33...
Nf5 {[%clk 0:00:06.5]} 34. Bxf5 {[%clk 0:00:26.2]} 34... Qxf5 {[%clk 0:00:07.4]}
35. Qe5+ {[%clk 0:00:25.2]} 35... Qxe5 {[%clk 0:00:06.7]} 36. Rxe5 {[%clk
0:00:25.9]} 36... Rf7 {[%clk 0:00:05.6]} 37. Ke2 {[%clk 0:00:24.8]} 37... Rd7
{[%clk 0:00:04]} 38. Re3 {[%clk 0:00:19.3]} 38... Kg7 {[%clk 0:00:04.6]} 39. Kd2
{[%clk 0:00:17.5]} 39... Rf7 {[%clk 0:00:02.2]} 40. f4 {[%clk 0:00:17]} 40...
Kg6 {[%clk 0:00:02.9]} 41. Kc3 {[%clk 0:00:13.2]} 41... Rd7 {[%clk 0:00:02.8]}
42. g4 {[%clk 0:00:11.1]} 42... Kf6 {[%clk 0:00:02.4]} 43. h4 {[%clk 0:00:10.7]}
43... Rd4 {[%clk 0:00:01.1]} 44. Rf3 {[%clk 0:00:09.3]} 1-0